bitfinex/quotes_BTCUSD_20230117
["timestamp","ask_amount","ask_price","bid_price","bid_amount"]
[1673929335571,1.37679238,21179.0,21178.0,1.35990644]
[1673929335837,0.412804,21179.0,21178.0,1.42861131]
[1673929336100,0.091,21179.0,21178.0,1.35490644]
[1673929336973,0.00840001,21180.0,21178.0,1.42361131]
[1673929337245,0.00840001,21180.0,21179.0,0.41280399]
[1673929337507,0.00840001,21180.0,21179.0,0.80839747]
[1673929337767,0.00840001,21180.0,21179.0,1.17198029]
[1673929338022,0.00840001,21180.0,21179.0,0.80839747]
[1673929338314,0.05340001,21180.0,21179.0,0.80839747]
[1673929338591,0.00840001,21180.0,21179.0,0.80839747]
[1673929338845,0.01640001,21180.0,21179.0,0.82439747]
[1673929339407,0.01647404,21180.0,21179.0,0.82439747]
[1673929339665,0.01640001,21180.0,21179.0,0.80839747]
[1673929339961,0.00840001,21180.0,21179.0,1.72885016]
[1673929340455,0.01640001,21180.0,21179.0,1.94414529]
[1673929340714,0.00840001,21180.0,21179.0,1.94470556]
[1673929340976,0.2857723,21189.0,21180.0,0.14080001]
[1673929341259,0.47649825,21189.0,21183.0,0.0753]
[1673929341512,0.2857723,21189.0,21184.0,0.75400269]
[1673929341779,0.2857723,21189.0,21185.0,0.06870487]
[1673929341780,0.02340763,21189.0,21185.0,0.06870487]
[1673929342052,0.02440763,21189.0,21188.0,0.0756]
[1673929342302,0.02340763,21189.0,21188.0,0.257538]
[1673929342569,0.02340763,21189.0,21188.0,0.32624287]
[1673929342825,0.02348166,21189.0,21188.0,0.181938]
[1673929343103,0.02348166,21189.0,21187.0,0.41236932]
[1673929343104,0.02340763,21189.0,21187.0,0.41236932]
[1673929343368,0.02340763,21189.0,21185.0,0.0756]
[1673929343639,0.02340763,21189.0,21184.0,0.3785]
[1673929343640,0.19072595,21188.0,21184.0,0.3785]
[1673929343904,0.19072595,21188.0,21183.0,1.07252188]
[1673929343905,0.19072595,21188.0,21183.0,0.9640317]
[1673929344220,0.02440763,21189.0,21187.0,0.077]
[1673929344485,0.02440763,21189.0,21188.0,0.39050887]
[1673929344752,0.02340763,21189.0,21188.0,0.82999169]
[1673929345060,0.02340763,21189.0,21188.0,0.76128682]
[1673929345319,0.02340763,21189.0,21188.0,1.20589169]
[1673929345584,0.02703461,21193.0,21189.0,0.51603966]
[1673929345839,0.02703461,21193.0,21192.0,0.0756]
[1673929346103,0.02703461,21193.0,21192.0,0.93791587]
[1673929346363,0.02703461,21193.0,21192.0,1.60149869]
[1673929346616,0.02803461,21193.0,21192.0,1.30859382]
[1673929346871,0.02703461,21193.0,21192.0,1.30859382]
[1673929347137,0.02703461,21193.0,21192.0,1.68459382]
[1673929347397,0.02803461,21193.0,21192.0,1.60859382]
[1673929347660,0.02661581,21196.0,21192.0,1.68574651]
[1673929347916,0.02661581,21196.0,21195.0,0.0759]
[1673929348175,0.02661581,21196.0,21195.0,0.869394]
[1673929348703,0.03487018,21198.0,21195.0,2.25283799]
[1673929348997,0.03487018,21198.0,21197.0,0.4396]
[1673929349287,5.1015,21200.0,21197.0,1.80205565]
[1673929349288,4.21657018,21200.0,21197.0,1.80205565]
[1673929349554,4.21657018,21200.0,21198.0,0.55901287]
[1673929349555,0.49287018,21200.0,21198.0,0.55901287]
[1673929349822,0.33287717,21206.0,21199.0,0.397519]
[1673929350077,0.33287717,21206.0,21201.0,0.0759]
[1673929350332,0.00056894,21208.0,21202.0,0.39026887]
[1673929350614,0.00056894,21208.0,21203.0,0.14460487]
[1673929350891,0.36815032,21207.0,21203.0,0.06870487]
[1673929351154,0.0759,21205.0,21203.0,0.06870487]
[1673929351413,0.321804,21204.0,21201.0,0.005]
[1673929351686,0.0759,21205.0,21201.0,0.005]
[1673929351687,0.19072595,21203.0,21201.0,0.005]
[1673929351972,0.32161882,21202.0,21201.0,0.005]
[1673929352231,0.52959403,21205.0,21201.0,0.005]
[1673929352497,7.403e-05,21204.0,21203.0,0.007]
[1673929352763,7.403e-05,21204.0,21201.0,0.06870487]
[1673929352764,0.32175703,21204.0,21201.0,0.06870487]
[1673929353055,0.32175703,21204.0,21201.0,0.066]
[1673929353056,0.001,21202.0,21201.0,0.066]
[1673929353347,7.403e-05,21204.0,21201.0,0.00109747]
[1673929353608,0.015,21204.0,21203.0,0.005]
[1673929353863,0.41823345,21204.0,21199.0,0.82905344]
[1673929354120,0.09762,21202.0,21201.0,0.067]
[1673929354390,0.322683,21202.0,21201.0,0.067]
[1673929354863,0.32426318,21203.0,21197.0,0.44319692]
[1673929354865,0.39966318,21203.0,21201.0,0.005]
[1673929355114,0.321683,21202.0,21201.0,0.005]
[1673929355649,0.321683,21202.0,21198.0,0.59949438]
[1673929355932,0.321683,21202.0,21193.0,0.39949224]
[1673929355933,1.11143637,21201.0,21193.0,0.39949224]
[1673929356168,0.0759,21195.0,21193.0,0.39949224]
[1673929356432,0.19072595,21195.0,21194.0,0.44695019]
[1673929356720,0.37562742,21201.0,21194.0,0.76863319]
[1673929357011,0.58035337,21201.0,21196.0,0.39308632]
[1673929357275,0.37562742,21201.0,21197.0,0.06870487]
[1673929357528,7.403e-05,21200.0,21197.0,0.06870487]
[1673929357787,7.403e-05,21200.0,21196.0,0.39308632]
[1673929358043,0.19072595,21199.0,21193.0,0.36729692]
[1673929358324,0.0759,21197.0,21192.0,0.47422919]
[1673929358588,0.19072595,21196.0,21194.0,0.007]
[1673929358840,0.0759,21197.0,21191.0,0.471881]
[1673929358841,0.53442792,21197.0,21191.0,0.471881]
[1673929359119,0.19072595,21197.0,21193.0,0.005]
[1673929359379,0.562286,21201.0,21193.0,0.005]
[1673929359380,0.33667902,21203.0,21195.0,0.0759]
[1673929359650,0.24029219,21199.0,21196.0,0.61805179]
[1673929360144,0.24029219,21199.0,21197.0,1.06870487]
[1673929360146,0.24029219,21199.0,21197.0,1.00010961]
[1673929360406,0.24029219,21199.0,21197.0,1.0]
[1673929360975,0.4513,21198.0,21197.0,1.0]
[1673929361208,0.772983,21198.0,21197.0,1.0]
[1673929361492,0.1,21197.0,21192.0,0.42893131]
[1673929361744,0.0759,21195.0,21188.0,0.84292572]
[1673929362222,0.0759,21195.0,21188.0,0.86625632]
[1673929362223,0.19072595,21194.0,21188.0,0.86625632]
[1673929362274,0.0753,21193.0,21188.0,0.39429132]
[1673929362521,0.19072595,21192.0,21188.0,0.39429132]
[1673929362745,0.06669998,21192.0,21188.0,0.39429132]
[1673929363001,0.18543926,21192.0,21188.0,0.39429132]
[1673929363261,0.18543926,21192.0,21188.0,0.47229132]
[1673929363543,0.18543926,21192.0,21188.0,0.39429132]
[1673929363544,0.11873928,21192.0,21188.0,0.39429132]
[1673929363848,0.11873928,21192.0,21188.0,0.005]
[1673929363849,0.13273928,21192.0,21188.0,0.005]
[1673929364109,0.1,21192.0,21188.0,0.19672595]
[1673929364362,0.014,21192.0,21189.0,0.19184495]
[1673929364922,0.014,21192.0,21188.0,0.40664394]
[1673929365204,0.43273928,21192.0,21188.0,0.40664394]
[1673929365462,0.41873928,21192.0,21188.0,0.40064394]
[1673929365712,0.51773928,21192.0,21188.0,0.40064394]
[1673929365980,0.1239,21191.0,21188.0,0.40064394]
[1673929366230,0.2239,21191.0,21188.0,0.40064394]
[1673929366525,0.2239,21191.0,21185.0,0.00056883]
[1673929366790,0.2239,21191.0,21186.0,0.5191716]
[1673929366791,0.24263928,21191.0,21186.0,0.5191716]
[1673929367038,0.36915369,21193.0,21191.0,0.24263928]
[1673929367286,0.84635538,21193.0,21192.0,0.19072595]
[1673929367534,1.16803838,21193.0,21191.0,0.24263928]
[1673929367815,0.321683,21192.0,21191.0,0.24263928]
[1673929368067,0.72275538,21193.0,21191.0,0.24263928]
[1673929368587,0.41072001,21192.0,21191.0,0.24263928]
[1673929368868,1.5578047,21192.0,21191.0,0.24263928]
[1673929369126,2.34947972,21192.0,21191.0,0.24263928]
[1673929369383,1.95797972,21192.0,21191.0,0.24263928]
[1673929369640,1.12745803,21192.0,21191.0,0.24263928]
[1673929369893,0.33578301,21192.0,21191.0,0.24263928]
[1673929370178,0.01410001,21192.0,21191.0,0.24263928]
[1673929371238,0.15110001,21192.0,21191.0,0.24263928]
[1673929371513,0.11072001,21192.0,21191.0,0.24263928]
[1673929371793,0.89420301,21192.0,21191.0,0.24263928]
[1673929372316,0.85720301,21192.0,21191.0,0.24263928]
[1673929372583,0.98100301,21192.0,21191.0,0.24263928]
[1673929372862,0.68100301,21192.0,21191.0,0.24263928]
[1673929373664,0.68100301,21192.0,21191.0,0.24363928]
[1673929373665,0.76700301,21192.0,21191.0,0.24363928]
[1673929374173,0.67038301,21192.0,21191.0,0.24363928]
[1673929374691,0.54558301,21192.0,21191.0,0.24363928]
[1673929375482,1.14185901,21192.0,21191.0,0.24363928]
[1673929375792,1.44185901,21192.0,21191.0,0.24363928]
[1673929377169,1.14185901,21192.0,21191.0,0.24363928]
[1673929379450,1.31745901,21192.0,21191.0,0.24363928]
[1673929380442,1.01745901,21192.0,21191.0,0.24363928]
[1673929380773,1.31745901,21192.0,21191.0,0.24363928]
[1673929381489,2.16062456,21192.0,21191.0,0.24363928]
[1673929382286,1.9194607,21192.0,21191.0,0.24363928]
[1673929382777,1.9279607,21192.0,21191.0,0.24363928]
[1673929383022,1.9279607,21192.0,21191.0,0.26439728]
[1673929384895,1.9279607,21192.0,21191.0,0.36439728]
[1673929385400,1.6194607,21192.0,21191.0,0.36439728]
[1673929386421,1.6194607,21192.0,21191.0,0.36430866]
[1673929386687,0.42178301,21192.0,21191.0,0.36430866]
[1673929386952,0.10010001,21192.0,21191.0,0.36430866]
[1673929387477,0.10010001,21192.0,21191.0,1.32725202]
[1673929387740,0.10010001,21192.0,21191.0,1.50753911]
[1673929387994,0.10010001,21192.0,21191.0,1.13652607]
[1673929388250,0.00010001,21192.0,21191.0,0.81484307]
[1673929388534,0.47179,21196.0,21191.0,0.81384307]
[1673929388769,0.59659,21196.0,21192.0,0.19072595]
[1673929389033,0.1248,21196.0,21193.0,0.19072595]
[1673929389840,0.47175,21198.0,21193.0,0.19072595]
[1673929390101,0.596429,21199.0,21194.0,0.19072595]
[1673929390364,1.07363069,21199.0,21195.0,0.19072595]
[1673929390615,1.07363069,21199.0,21196.0,0.19072595]
[1673929391416,1.07363069,21199.0,21194.0,0.37001946]
[1673929391417,1.07363069,21199.0,21194.0,0.37801946]
[1673929391684,0.1236,21196.0,21194.0,0.008]
[1673929391951,0.1236,21196.0,21192.0,0.378]
[1673929391952,0.321683,21195.0,21192.0,0.471875]
[1673929392254,1.07374869,21198.0,21193.0,0.37898477]
[1673929392255,0.1248,21198.0,21193.0,0.37898477]
[1673929392745,0.471713,21200.0,21194.0,1.36225641]
[1673929393006,0.50025537,21201.0,21195.0,0.88242841]
[1673929393007,0.16963531,21201.0,21195.0,0.88242841]
[1673929393279,0.02857837,21201.0,21196.0,1.21454441]
[1673929393549,0.02857837,21201.0,21197.0,0.88239541]
[1673929393845,0.02857837,21201.0,21198.0,6.112e-05]
[1673929394095,0.02857837,21201.0,21197.0,0.37001946]
[1673929394353,0.26950848,21200.0,21196.0,0.37001946]
[1673929394617,0.38824776,21200.0,21195.0,1.32479684]
[1673929394871,0.11817115,21199.0,21197.0,0.007]
[1673929395157,0.39330848,21200.0,21195.0,0.48299038]
[1673929395424,0.24217115,21199.0,21197.0,0.008]
[1673929395673,0.124,21199.0,21195.0,0.48299038]
[1673929395924,0.124,21199.0,21197.0,0.007]
[1673929396179,0.39430848,21200.0,21195.0,0.48299038]
[1673929396652,0.51247963,21200.0,21195.0,1.14552433]
[1673929396654,0.11817115,21199.0,21194.0,0.37001946]
[1673929396922,0.1244,21197.0,21193.0,0.3828]
[1673929397184,0.11817115,21196.0,21194.0,6.113e-05]
[1673929397441,0.571743,21198.0,21194.0,6.113e-05]
[1673929397708,0.68991415,21198.0,21194.0,6.113e-05]
[1673929398008,0.28419823,21197.0,21195.0,0.007]
[1673929398281,1.96542508,21197.0,21194.0,0.079]
[1673929398543,1.96542508,21197.0,21192.0,3.00738306]
[1673929398544,0.321683,21196.0,21192.0,3.00738306]
[1673929398802,0.321683,21196.0,21194.0,0.003]
[1673929398803,0.24217115,21195.0,21194.0,0.003]
[1673929399239,1.53995714,21195.0,21194.0,0.003]
[1673929399246,0.595809,21195.0,21191.0,0.36330866]
[1673929399469,0.71398015,21195.0,21191.0,0.120758]
[1673929400136,0.71398015,21195.0,21194.0,0.007]
[1673929400400,0.917492,21195.0,21192.0,6.114e-05]
[1673929400662,0.321683,21194.0,21191.0,0.120758]
[1673929400922,0.321683,21193.0,21191.0,0.120758]
[1673929401182,0.321683,21192.0,21191.0,0.120758]
[1673929402456,0.471854,21193.0,21191.0,0.120758]
[1673929402726,0.94990026,21196.0,21192.0,0.00110684]
[1673929402994,1.55704042,21195.0,21192.0,0.19183279]
[1673929403223,0.321683,21194.0,21192.0,0.00110684]
[1673929403481,0.61286594,21195.0,21192.0,0.00110684]
[1673929403993,0.321683,21194.0,21192.0,0.00110684]
[1673929404276,0.321683,21193.0,21192.0,0.00410684]
[1673929404501,0.61286594,21195.0,21192.0,0.00410684]
[1673929404760,0.94990526,21196.0,21192.0,0.00410684]
[1673929405037,0.73766394,21196.0,21192.0,0.19483279]
[1673929405303,0.94990526,21196.0,21192.0,0.19183279]
[1673929405593,0.321683,21195.0,21191.0,0.07886484]
[1673929405878,0.321683,21194.0,21191.0,0.07886484]
[1673929406138,0.11817115,21195.0,21192.0,0.007]
[1673929406389,0.74466394,21196.0,21192.0,0.014]
[1673929406639,0.94990526,21196.0,21192.0,0.19072595]
[1673929407116,0.73766394,21196.0,21192.0,0.19072595]
[1673929407118,0.00110684,21195.0,21191.0,0.08286484]
[1673929407386,0.59108799,21195.0,21191.0,0.07886484]
[1673929407669,1.48135219,21195.0,21191.0,0.07886484]
[1673929407946,0.26585694,21193.0,21191.0,0.07886484]
[1673929408236,0.73771694,21193.0,21192.0,0.007]
[1673929408495,1.53181388,21193.0,21191.0,0.07886484]
[1673929408752,0.321683,21192.0,21191.0,0.08586484]
[1673929409007,0.61289994,21194.0,21191.0,0.07886484]
[1673929409267,0.007,21193.0,21191.0,0.08603636]
[1673929409563,0.471843,21194.0,21191.0,0.07903636]
[1673929409826,0.007,21193.0,21191.0,0.08603636]
[1673929410090,0.007,21193.0,21191.0,0.08586484]
[1673929410344,0.00110684,21192.0,21191.0,0.07886484]
[1673929410622,0.478843,21194.0,21191.0,0.08586484]
[1673929410911,0.596651,21194.0,21191.0,0.07886484]
[1673929411165,0.321683,21193.0,21191.0,0.07886484]
[1673929411438,0.00110684,21193.0,21191.0,0.07886484]
[1673929411943,0.542893,21194.0,21191.0,0.001]
[1673929412423,0.26585694,21194.0,21191.0,0.19172595]
[1673929412454,1.14027369,21195.0,21191.0,0.001]
[1673929412709,1.14027369,21195.0,21191.0,0.19172595]
[1673929412960,1.14027369,21195.0,21191.0,0.19072595]
[1673929413222,1.14027369,21195.0,21191.0,0.19372595]
[1673929413472,0.063,21194.0,21191.0,0.19072595]
[1673929413741,0.587827,21193.0,21191.0,0.003]
[1673929414004,0.321683,21192.0,21191.0,0.003]
[1673929414806,0.321683,21192.0,21191.0,0.002]
[1673929415037,0.46273994,21192.0,21188.0,0.5074958]
[1673929415301,0.12517115,21192.0,21188.0,0.5074958]
[1673929416108,0.11817115,21192.0,21188.0,0.5074958]
[1673929416336,0.007,21192.0,21188.0,0.028]
[1673929416620,0.107,21192.0,21188.0,0.028]
[1673929417158,0.34703482,21191.0,21188.0,0.028]
[1673929417613,0.893603,21190.0,21188.0,0.028]
[1673929417871,0.321683,21189.0,21188.0,0.028]
[1673929418135,0.471942,21189.0,21188.0,0.028]
[1673929418396,0.471942,21189.0,21186.0,0.00120831]
[1673929418654,0.321683,21188.0,21186.0,0.00120831]
[1673929418911,0.321683,21187.0,21186.0,0.00120831]
[1673929419184,0.695766,21188.0,21186.0,0.00120831]
[1673929419452,0.74838165,21188.0,21186.0,0.00120831]
[1673929419721,0.321683,21187.0,21186.0,0.00120831]
[1673929420008,0.51535367,21187.0,21186.0,0.02620831]
[1673929420277,1.47304236,21187.0,21186.0,0.02620831]
[1673929420539,2.55858502,21187.0,21186.0,0.02620831]
[1673929420801,3.07082634,21187.0,21186.0,0.00120831]
[1673929421060,2.25314453,21187.0,21186.0,0.02620831]
[1673929421324,1.77904236,21187.0,21186.0,0.02620831]
[1673929421592,2.86461162,21187.0,21186.0,0.02620831]
[1673929421853,3.07685294,21187.0,21186.0,0.02620831]
[1673929422120,3.21879309,21187.0,21186.0,0.02620831]
[1673929422378,1.92008578,21187.0,21186.0,0.02620831]
[1673929422684,1.92008578,21187.0,21183.0,0.00120831]
[1673929422685,3.37042054,21187.0,21183.0,0.00120831]
[1673929422945,0.0758,21184.0,21183.0,0.00120831]
[1673929423196,0.869537,21184.0,21183.0,0.00120831]
[1673929423754,0.869537,21184.0,21183.0,0.23120831]
[1673929424061,1.34673869,21184.0,21183.0,0.23120831]
[1673929424314,1.34673869,21184.0,21183.0,0.23220831]
[1673929424315,1.52922263,21184.0,21183.0,0.23220831]
[1673929424577,1.91352263,21184.0,21183.0,0.23220831]
[1673929425093,1.91352263,21184.0,21183.0,0.00220831]
[1673929425875,1.52670882,21184.0,21183.0,0.00220831]
[1673929426137,1.20502582,21184.0,21183.0,0.00220831]
[1673929426398,1.20002582,21184.0,21183.0,0.00220831]
[1673929426666,1.52170882,21184.0,21183.0,0.00220831]
[1673929426924,1.20002582,21184.0,21183.0,0.00220831]
[1673929427153,1.82170882,21184.0,21183.0,0.00220831]
[1673929428021,1.82440882,21184.0,21183.0,0.00220831]
[1673929428473,1.52440882,21184.0,21183.0,0.00220831]
[1673929429776,1.52440882,21184.0,21183.0,0.09863947]
[1673929429777,0.0097,21184.0,21183.0,0.09863947]
[1673929430033,0.0097,21184.0,21183.0,1.04628505]
[1673929430292,0.0097,21184.0,21183.0,0.8555591]
[1673929430572,0.007,21184.0,21183.0,0.8555591]
[1673929430824,0.007,21184.0,21183.0,0.85549794]
[1673929431082,0.007,21184.0,21183.0,0.32389131]
[1673929431588,0.10362,21184.0,21183.0,0.00220831]
[1673929431868,0.007,21184.0,21183.0,0.00220831]
[1673929432351,0.007,21184.0,21183.0,0.32389131]
[1673929433089,0.007,21184.0,21183.0,0.00220831]
[1673929433634,0.10362,21184.0,21183.0,0.00220831]
[1673929434398,0.007,21184.0,21183.0,0.00220831]
[1673929435105,0.007,21184.0,21183.0,0.32389131]
[1673929435364,0.00643205,21184.0,21183.0,0.32389131]
[1673929435910,0.00643205,21184.0,21183.0,0.00220831]
[1673929436418,0.10305205,21184.0,21183.0,0.00220831]
[1673929436962,0.00643205,21184.0,21183.0,0.00220831]
[1673929437194,0.00643205,21184.0,21183.0,0.00232177]
[1673929437447,0.00643205,21184.0,21183.0,0.32400477]
[1673929437700,0.00643205,21184.0,21183.0,0.32389131]
[1673929438292,0.10305205,21184.0,21183.0,0.00220831]
[1673929439540,0.00643205,21184.0,21183.0,0.00220831]
[1673929440566,0.10305205,21184.0,21183.0,0.00220831]
[1673929441692,0.50053505,21184.0,21183.0,0.00220831]
[1673929442208,0.97773674,21184.0,21183.0,0.00220831]
[1673929444258,1.44979074,21184.0,21183.0,0.00220831]
[1673929444517,1.12810774,21184.0,21183.0,0.00220831]
[1673929444822,1.44979074,21184.0,21183.0,0.00220831]
[1673929445058,1.12810774,21184.0,21183.0,0.00220831]
[1673929445321,1.44979074,21184.0,21183.0,0.00220831]
[1673929446129,1.12810774,21184.0,21183.0,0.00220831]
[1673929446398,1.44979074,21184.0,21183.0,0.00220831]
[1673929447498,0.00643205,21184.0,21183.0,0.19409972]
[1673929447771,0.00643205,21184.0,21183.0,0.09974377]
[1673929448027,0.00643205,21184.0,21183.0,0.42142677]
[1673929449209,0.00643205,21184.0,21183.0,0.00337377]
[1673929450491,0.00643205,21184.0,21183.0,0.32505677]
[1673929450744,1e-08,21184.0,21183.0,0.87223277]
[1673929450997,1e-08,21184.0,21183.0,1.23640415]
[1673929451252,1e-08,21184.0,21183.0,0.79596731]
[1673929451554,1e-08,21184.0,21183.0,0.00220831]
[1673929452589,0.0758,21187.0,21183.0,0.00120831]
[1673929452852,0.0758,21187.0,21183.0,0.25093426]
[1673929452853,0.003,21184.0,21183.0,0.25093426]
[1673929453111,0.003,21184.0,21183.0,0.06020831]
[1673929453364,0.003,21184.0,21183.0,0.06137652]
[1673929453618,0.003,21184.0,21183.0,0.06020831]
[1673929454378,0.0758,21186.0,21183.0,0.00237652]
[1673929454637,0.0758,21186.0,21183.0,0.19810247]
[1673929454891,0.0758,21186.0,21183.0,0.00237652]
[1673929455199,0.09962,21184.0,21183.0,0.06020831]
[1673929455418,1.59416038,21184.0,21183.0,0.00120831]
[1673929455687,2.38789738,21184.0,21183.0,0.00520831]
[1673929455939,2.52894807,21184.0,21183.0,0.00520831]
[1673929456532,2.7405241,21184.0,21183.0,0.00520831]
[1673929457049,2.7405241,21184.0,21183.0,0.00120831]
[1673929457311,2.8854705,21184.0,21183.0,0.06020831]
[1673929457574,1.96362298,21184.0,21183.0,0.06020831]
[1673929457875,1.50054038,21184.0,21183.0,0.06020831]
[1673929458133,1.96362298,21184.0,21183.0,0.06020831]
[1673929458395,1.82222338,21184.0,21183.0,0.06020831]
[1673929458923,1.74642338,21184.0,21183.0,0.06020831]
[1673929459421,1.88782298,21184.0,21183.0,0.06020831]
[1673929459715,1.74642338,21184.0,21183.0,0.06020831]
[1673929459963,0.324683,21184.0,21183.0,0.06020831]
[1673929460227,0.003,21184.0,21183.0,0.06020831]
[1673929461005,1.18558598,21184.0,21183.0,0.06020831]
[1673929461262,2.08828792,21184.0,21183.0,0.06020831]
[1673929461523,2.13890734,21184.0,21183.0,0.06020831]
[1673929461800,1.85591025,21184.0,21183.0,0.06020831]
[1673929462558,1.78578032,21184.0,21183.0,0.06020831]
[1673929465399,1.85591025,21184.0,21183.0,0.06020831]
[1673929465669,2.13890734,21184.0,21183.0,0.06020831]
[1673929465920,2.33311194,21184.0,21183.0,0.06020831]
[1673929466183,2.47456314,21184.0,21183.0,0.06020831]
[1673929466704,1.41070058,21184.0,21183.0,0.06020831]
[1673929467000,0.003,21184.0,21183.0,0.06020831]
[1673929467264,0.003,21184.0,21183.0,0.38189131]
[1673929467525,0.003,21184.0,21183.0,0.06020831]
[1673929467806,0.003,21184.0,21183.0,0.06026947]
[1673929468331,0.003,21184.0,21183.0,0.38195247]
[1673929468590,0.003,21184.0,21183.0,0.06020831]
[1673929469105,1.30054196,21184.0,21183.0,0.06020831]
[1673929469362,1.15909076,21184.0,21183.0,0.06020831]
[1673929469682,1.30055758,21184.0,21183.0,0.06020831]
[1673929469887,1.08898155,21184.0,21183.0,0.06020831]
[1673929472462,1.08898155,21184.0,21183.0,0.06013599]
[1673929473250,1.30055758,21184.0,21183.0,0.06013599]
[1673929473535,1.44208785,21184.0,21183.0,0.06013599]
[1673929473777,1.76377085,21184.0,21183.0,0.06013599]
[1673929474031,1.55219482,21184.0,21183.0,0.06013599]
[1673929474286,1.76440586,21184.0,21183.0,0.06013599]
[1673929474552,1.55219482,21184.0,21183.0,0.06013599]
[1673929474781,1.44271981,21184.0,21183.0,0.06013599]
[1673929475077,1.48140572,21184.0,21183.0,0.06013599]
[1673929475598,1.76440281,21184.0,21183.0,0.06013599]
[1673929476682,1.90710035,21184.0,21183.0,0.06013599]
[1673929477741,1.98290035,21184.0,21183.0,0.06013599]
[1673929478539,1.62799482,21184.0,21183.0,0.06013599]
[1673929479094,1.98290035,21184.0,21183.0,0.06013599]
[1673929479614,1.84020967,21184.0,21183.0,0.06013599]
[1673929481092,1.62799482,21184.0,21183.0,0.06013599]
[1673929481628,1.37701343,21184.0,21183.0,0.06013599]
[1673929481894,1.0889942,21184.0,21183.0,0.06013599]
[1673929485442,1.30121343,21184.0,21183.0,0.06013599]
[1673929485700,1.0889942,21184.0,21183.0,0.06013599]
[1673929485959,1.30121343,21184.0,21183.0,0.06013599]
[1673929486216,1.30121343,21184.0,21183.0,0.06002547]
[1673929486217,1.63693565,21184.0,21183.0,0.06002547]
[1673929486483,2.26585512,21184.0,21183.0,0.06002547]
[1673929486781,2.62076065,21184.0,21183.0,0.06002547]
[1673929487033,2.47808278,21184.0,21183.0,0.06002547]
[1673929487561,2.26585512,21184.0,21183.0,0.06002547]
[1673929487818,2.62937996,21184.0,21183.0,0.06002547]
[1673929488108,3.10143396,21184.0,21183.0,0.06002547]
[1673929488367,2.83921203,21184.0,21183.0,0.06002547]
[1673929489154,2.46341203,21184.0,21183.0,0.06002547]
[1673929489698,0.2818423,21183.0,21182.0,0.00086191]
[1673929489963,3.59189618,21183.0,21182.0,0.00086191]
[1673929490243,4.10626662,21183.0,21182.0,1.91e-06]
[1673929490509,4.10626662,21183.0,21177.0,0.00108332]
[1673929490510,4.64006594,21183.0,21177.0,0.00108332]
[1673929491039,4.64006594,21183.0,21174.0,0.00104482]
[1673929491040,0.71333169,21178.0,21174.0,0.00104482]
[1673929491044,1.15153169,21178.0,21174.0,0.00104482]
[1673929491303,0.78775451,21175.0,21174.0,0.00104482]
[1673929491567,2.03548304,21175.0,21174.0,0.00104482]
[1673929491854,0.87468469,21175.0,21174.0,0.00104482]
[1673929493186,0.96568469,21175.0,21174.0,0.00104482]
[1673929493723,0.1668,21175.0,21174.0,0.09741482]
[1673929493975,0.091,21175.0,21174.0,0.09741482]
[1673929494247,0.091,21175.0,21174.0,0.00104482]
[1673929494505,0.1668,21175.0,21174.0,0.00104482]
[1673929494982,0.488483,21175.0,21174.0,0.00104482]
[1673929495493,0.1668,21175.0,21174.0,0.00104482]
[1673929496021,0.488483,21175.0,21174.0,0.00104482]
[1673929496257,0.0758,21175.0,21174.0,0.00104482]
[1673929496508,0.1668,21175.0,21174.0,0.00104482]
[1673929498076,1.43793969,21175.0,21174.0,0.00104482]
[1673929498630,1.92059088,21175.0,21174.0,0.00104482]
[1673929499153,2.00489088,21175.0,21174.0,0.00104482]
[1673929499411,2.54104088,21175.0,21174.0,0.00104482]
[1673929501287,2.45004088,21175.0,21174.0,0.00104482]
[1673929501571,2.90006424,21175.0,21174.0,0.00104482]
[1673929501828,2.54078888,21175.0,21174.0,0.00104482]
[1673929502335,2.30463888,21175.0,21174.0,0.00104482]
[1673929502833,1.92883888,21175.0,21174.0,0.00104482]
[1673929503868,2.30463888,21175.0,21174.0,0.00104482]
[1673929505426,2.21363888,21175.0,21174.0,0.00104482]
[1673929505691,2.30463888,21175.0,21174.0,0.00104482]
[1673929507786,1.92883888,21175.0,21174.0,0.00104482]
[1673929509426,2.22883888,21175.0,21174.0,0.00104482]
[1673929510209,1.92033888,21175.0,21174.0,0.00110601]
[1673929510743,1.84479088,21175.0,21174.0,0.00104482]
[1673929510749,1.37253588,21175.0,21174.0,0.00104482]
[1673929511263,1.05085288,21175.0,21174.0,0.00104482]
[1673929511517,0.95985288,21175.0,21174.0,0.00104482]
[1673929511774,1.51510788,21175.0,21174.0,0.00204482]
[1673929512586,1.96993656,21175.0,21174.0,0.00204482]
[1673929513130,1.83679088,21175.0,21174.0,0.00204482]
[1673929513918,1.51510788,21175.0,21174.0,0.00204482]
[1673929514195,0.39920001,21175.0,21174.0,0.09841482]
[1673929514486,0.39920001,21175.0,21174.0,0.00204482]
[1673929515039,1.4244567,21175.0,21174.0,0.00204482]
[1673929515301,1.7461397,21175.0,21174.0,0.00204482]
[1673929517602,2.06563124,21175.0,21174.0,0.00204482]
[1673929518864,1.7461397,21175.0,21174.0,0.00204482]
[1673929519376,0.8764017,21175.0,21174.0,0.00204482]
[1673929519887,1.3486567,21175.0,21174.0,0.00204482]
[1673929520144,1.4244567,21175.0,21174.0,0.00204482]
[1673929520409,1.7461397,21175.0,21174.0,0.00204482]
[1673929520672,2.04201834,21175.0,21174.0,0.00204482]
[1673929520936,1.7461397,21175.0,21170.0,0.51998341]
[1673929521178,1.3486567,21175.0,21170.0,0.71070936]
[1673929521423,1.3486567,21175.0,21171.0,0.321683]
[1673929521674,1.3486567,21175.0,21172.0,0.1827312]
[1673929521924,1.3486567,21175.0,21173.0,0.321651]
[1673929522181,1.3486567,21175.0,21170.0,0.71070936]
[1673929522426,1.2656567,21175.0,21170.0,0.71070936]
[1673929522678,1.3486567,21175.0,21171.0,0.321683]
[1673929522980,1.2656567,21175.0,21172.0,6.12e-05]
[1673929523234,1.2656567,21175.0,21170.0,0.71070936]
[1673929523774,1.3486567,21175.0,21171.0,0.321683]
[1673929524024,1.3486567,21175.0,21172.0,0.18267]
[1673929524291,1.2656567,21175.0,21170.0,0.51998341]
[1673929524541,1.2656567,21175.0,21172.0,0.001]
[1673929524542,1.3486567,21175.0,21172.0,0.001]
[1673929525276,1.2656567,21175.0,21170.0,0.71070936]
[1673929525529,1.3486567,21175.0,21171.0,0.001]
[1673929525782,1.2656567,21175.0,21172.0,0.321683]
[1673929526132,0.8764017,21175.0,21172.0,0.0010612]
[1673929526297,0.8764017,21175.0,21173.0,0.321683]
[1673929526559,0.39920001,21175.0,21174.0,0.34932595]
[1673929526807,0.31391345,21180.0,21175.0,0.34485839]
[1673929527058,0.17262983,21180.0,21177.0,0.0758]
[1673929527303,0.17262983,21180.0,21178.0,0.51233995]